fUST/lending_fUST_20250912
["ID","MTS","AMOUNT","RATE_DAILY","PERIOD"]
[385148131,1757673059813,-480.0,0.00014794,2]
[385148132,1757673059823,-194.16379098,0.00014794,2]
[385148133,1757673059834,-480.0,0.00014794,2]
[385148134,1757673059843,-480.0,0.00014794,2]
[385148135,1757673059863,-480.0,0.00014794,2]
[385148136,1757673059881,-480.0,0.00014794,2]
[385148137,1757673059900,-480.0,0.00014794,2]
[385148138,1757673059920,-480.0,0.00014794,2]
[385148139,1757673059942,-480.0,0.00014794,2]
[385148140,1757673059961,-480.0,0.00014794,2]
[385148141,1757673059981,-559.19,0.00014794,2]
[385148142,1757673059996,-480.0,0.00014794,2]
[385148143,1757673060015,-480.0,0.00014794,2]
[385148144,1757673060037,-490.32040738,0.00014794,2]
[385148145,1757673060057,-480.0,0.00014794,2]
[385148146,1757673060071,-480.0,0.00014794,2]
[385148147,1757673060091,-480.0,0.00014794,2]
[385148148,1757673060105,-500.44826199,0.00014794,2]
[385148149,1757673060120,-480.0,0.00014794,2]
[385148150,1757673060135,-480.0,0.00014794,2]
[385148151,1757673060149,-480.0,0.00014794,2]
[385148152,1757673060163,-480.0,0.00014794,2]
[385148153,1757673060177,-480.0,0.00014794,2]
[385148154,1757673060191,-480.0,0.00014794,2]
[385148155,1757673060205,-480.0,0.00014794,2]
[385148156,1757673060220,-480.0,0.00014794,2]
[385148157,1757673060234,-480.0,0.00014794,2]
[385148158,1757673060249,-480.0,0.00014794,2]
[385148159,1757673060263,-480.0,0.00014794,2]
[385148160,1757673060278,-496.66,0.00014794,2]
[385148161,1757673060292,-480.0,0.00014794,2]
[385148162,1757673060306,-480.0,0.00014794,2]
[385148163,1757673060321,-480.0,0.00014794,2]
[385148164,1757673060335,-480.0,0.00014794,2]
[385148165,1757673060349,-504.17293204,0.00014794,2]
[385148166,1757673060364,-480.0,0.00014794,2]
[385148167,1757673060378,-480.0,0.00014794,2]
[385148168,1757673060391,-480.0,0.00014794,2]
[385148169,1757673060405,-480.0,0.00014794,2]
[385148170,1757673060419,-285.35235389,0.00014794,2]
[385148171,1757673060434,-489.87360635,0.00014794,2]
[385148172,1757673060448,-613.67862645,0.00014794,2]
[385148173,1757673060465,-480.0,0.00014794,2]
[385148174,1757673060481,-480.0,0.00014794,2]
[385148175,1757673060496,-480.0,0.00014794,2]
[385148176,1757673060511,-251.85645684,0.00014794,2]
[385148177,1757673060525,-393.80868904,0.00014794,2]
[385148178,1757673060540,-480.0,0.00014794,2]
[385148179,1757673060556,-480.0,0.00014794,2]
[385148180,1757673060571,-480.0,0.00014794,2]
[385148181,1757673060586,-480.0,0.00014794,2]
[385148182,1757673060600,-480.0,0.00014794,2]
[385148183,1757673060617,-480.0,0.00014794,2]
[385148184,1757673060631,-214.02317887,0.00014794,2]
[385148185,1757673060646,-480.0,0.00014794,2]
[385148186,1757673060662,-480.0,0.00014794,2]
[385148187,1757673060671,-312.97063362,0.00014794,2]
[385148188,1757673060681,-480.0,0.00014794,2]
[385148189,1757673060690,-480.0,0.00014794,2]
[385148190,1757673060700,-331.547307,0.00014794,2]
[385148191,1757673060839,-480.0,0.00014794,2]
[385148192,1757673060850,-480.0,0.00014794,2]
[385148193,1757673060859,-480.0,0.00014794,2]
[385148194,1757673060869,-480.0,0.00014794,2]
[385148195,1757673060878,-480.0,0.00014794,2]
[385148196,1757673060887,-480.0,0.00014794,2]
[385148197,1757673060897,-271.14443222,0.00014794,2]
[385148198,1757673060906,-480.0,0.00014794,2]
[385148199,1757673060916,-480.0,0.00014794,2]
[385148200,1757673060925,-480.0,0.00014794,2]
[385148201,1757673060935,-479.2635823,0.00014794,2]
[385148202,1757673060945,-480.0,0.00014794,2]
[385148203,1757673060954,-480.0,0.00014794,2]
[385148204,1757673060964,-480.0,0.00014794,2]
[385148205,1757673060973,-480.0,0.00014794,2]
[385148206,1757673060983,-480.0,0.00014794,2]
[385148207,1757673060992,-480.83,0.00014794,2]
[385148208,1757673061003,-480.0,0.00014794,2]
[385148209,1757673061013,-480.0,0.00014794,2]
[385148210,1757673061027,-2550.41,0.00014794,2]
[385148211,1757673061037,-480.0,0.00014794,2]
[385148212,1757673061047,-480.0,0.00014794,2]
[385148213,1757673061057,-495.0,0.00014794,2]
[385148214,1757673061068,-480.0,0.00014794,2]
[385148215,1757673061077,-480.0,0.00014794,2]
[385148216,1757673061087,-480.0,0.00014794,2]
[385148217,1757673061099,-480.0,0.00014794,2]
[385148218,1757673061110,-507.13673715,0.00014794,2]
[385148219,1757673061119,-521.29,0.00014794,2]
[385148220,1757673061129,-480.0,0.00014794,2]
[385148221,1757673061139,-506.33,0.00014794,2]
[385148222,1757673061148,-3449.72,0.00014794,2]
[385148223,1757673061157,-480.0,0.00014794,2]
[385148224,1757673061168,-480.0,0.00014794,2]
[385148225,1757673061177,-606.05,0.00014794,2]
[385148226,1757673061187,-480.0,0.00014794,2]
[385148227,1757673061196,-480.0,0.00014794,2]
[385148228,1757673061206,-480.0,0.00014794,2]
[385148229,1757673061215,-480.0,0.00014794,2]
[385148230,1757673061224,-480.0,0.00014794,2]
[385148231,1757673061234,-480.0,0.00014794,2]
[385148232,1757673061243,-480.0,0.00014794,2]
[385148233,1757673061253,-480.0,0.00014794,2]
[385148234,1757673061262,-480.0,0.00014794,2]
[385148235,1757673061271,-480.0,0.00014794,2]
[385148236,1757673061280,-480.0,0.00014794,2]
[385148237,1757673061290,-480.0,0.00014794,2]
[385148238,1757673061299,-951.78,0.00014794,2]
[385148239,1757673061308,-507.12464074,0.00014794,2]
[385148240,1757673061318,-1363.58,0.00014794,2]
[385148241,1757673061327,-480.0,0.00014794,2]
[385148242,1757673061336,-499.70199075,0.00014794,2]
[385148243,1757673061347,-480.0,0.00014794,2]
[385148244,1757673061356,-552.65,0.00014794,2]
[385148245,1757673061365,-745.71,0.00014794,2]
[385148246,1757673061375,-480.0,0.00014794,2]
[385148247,1757673061384,-607.04,0.00014794,2]
[385148248,1757673061394,-480.0,0.00014794,2]
[385148249,1757673061403,-265.34868049,0.00014794,2]
[385148250,1757673061412,-480.0,0.00014794,2]
[385148251,1757673061422,-480.0,0.00014794,2]
[385148252,1757673061432,-480.0,0.00014794,2]
[385148253,1757673061441,-1396.93,0.00014794,2]
[385148254,1757673061450,-480.0,0.00014794,2]
[385148255,1757673061459,-480.0,0.00014794,2]
[385148256,1757673061469,-173.16880806,0.00014794,2]
[385148257,1757673061478,-596.39,0.00014794,2]
[385148258,1757673061487,-480.0,0.00014794,2]
[385148259,1757673061496,-480.0,0.00014794,2]
[385148260,1757673061505,-480.0,0.00014794,2]
[385148261,1757673061515,-480.0,0.00014794,2]
[385148262,1757673061524,-480.0,0.00014794,2]
[385148263,1757673061534,-480.0,0.00014794,2]
[385148264,1757673061543,-480.0,0.00014794,2]
[385148265,1757673061553,-524.80016451,0.00014794,2]
[385148266,1757673061562,-480.0,0.00014794,2]
[385148267,1757673061572,-480.0,0.00014794,2]
[385148268,1757673061581,-480.0,0.00014794,2]
[385148269,1757673061591,-480.0,0.00014794,2]
[385148270,1757673061601,-851.25,0.00014794,2]
[385148271,1757673061611,-480.0,0.00014794,2]
[385148272,1757673061620,-480.0,0.00014794,2]
[385148273,1757673061630,-4670.62,0.00014794,2]
[385148274,1757673061639,-260.72973232,0.00014794,2]
[385148275,1757673061649,-480.0,0.00014794,2]
[385148276,1757673061658,-480.0,0.00014794,2]
[385148277,1757673061667,-480.0,0.00014794,2]
[385148278,1757673061677,-480.0,0.00014794,2]
[385148279,1757673061687,-538.97,0.00014794,2]
[385148280,1757673061696,-557.97,0.00014794,2]
[385148281,1757673061705,-536.84,0.00014794,2]
[385148282,1757673061714,-480.0,0.00014794,2]
[385148283,1757673061724,-480.0,0.00014794,2]
[385148284,1757673061733,-480.0,0.00014794,2]
[385148285,1757673061742,-480.0,0.00014794,2]
[385148286,1757673061752,-531.77,0.00014794,2]
[385148287,1757673061761,-514.05,0.00014794,2]
[385148288,1757673061771,-480.0,0.00014794,2]
[385148289,1757673061780,-480.0,0.00014794,2]
[385148290,1757673061789,-613.39,0.00014794,2]
[385148291,1757673061799,-480.0,0.00014794,2]
[385148292,1757673061808,-480.0,0.00014794,2]
[385148293,1757673061818,-544.67,0.00014794,2]
[385148294,1757673061827,-680.0,0.00014794,2]
[385148295,1757673061836,-480.0,0.00014794,2]
[385148296,1757673061846,-480.0,0.00014794,2]
[385148297,1757673061857,-600.17,0.00014794,2]
[385148298,1757673061867,-480.0,0.00014794,2]
[385148299,1757673061876,-480.0,0.00014794,2]
[385148300,1757673061886,-489.03312063,0.00014794,2]
[385148301,1757673061895,-782.97,0.00014794,2]
[385148302,1757673061905,-480.0,0.00014794,2]
[385148303,1757673061916,-480.0,0.00014794,2]
[385148304,1757673061925,-480.0,0.00014794,2]
[385148305,1757673061935,-480.0,0.00014794,2]
[385148306,1757673061944,-533.97,0.00014794,2]
[385148307,1757673061955,-480.0,0.00014794,2]
[385148308,1757673061965,-480.0,0.00014794,2]
[385148309,1757673061975,-358.11341016,0.00014794,2]
[385148310,1757673061985,-480.0,0.00014794,2]
[385148311,1757673061994,-480.0,0.00014794,2]
[385148312,1757673062003,-640.0,0.00014794,2]
[385148313,1757673062014,-480.0,0.00014794,2]
[385148314,1757673062025,-480.0,0.00014794,2]
[385148315,1757673062034,-480.0,0.00014794,2]
[385148316,1757673062044,-151.0,0.000148,2]
[385148317,1757673062053,-4000.0,0.00014896,2]
[385148318,1757673062063,-151.0,0.00015,2]
[385148319,1757673062072,-503.94959228,0.0001504,2]
[385148320,1757673062082,-215.0,0.00015068,2]
[385148321,1757673062093,-189.4,0.00015068,2]
[385148322,1757673062102,-500.0,0.00015068,2]
[385148323,1757673062111,-500.0,0.00015068,2]
[385148324,1757673062120,-480.0,0.00015068,2]
[385148325,1757673062130,-489.18586202,0.00015068,2]
[385148326,1757673062139,-480.0,0.00015068,2]
[385148327,1757673062148,-267.3594362,0.00015068,2]
[385148328,1757673062157,-496.28041285,0.00015068,2]
[385148329,1757673062166,-559.19,0.00015068,2]
[385148330,1757673062175,-480.0,0.00015068,2]
[385148331,1757673062184,-480.0,0.00015068,2]
[385148332,1757673062195,-480.0,0.00015068,2]
[385148333,1757673062205,-480.0,0.00015068,2]
[385148334,1757673062216,-480.0,0.00015068,2]
[385148335,1757673062225,-624.63256648,0.00015068,2]
[385148336,1757673062234,-480.0,0.00015068,2]
[385148337,1757673062243,-480.0,0.00015068,2]
[385148338,1757673062255,-480.0,0.00015068,2]
[385148339,1757673062264,-480.0,0.00015068,2]
[385148340,1757673062273,-480.0,0.00015068,2]
[385148341,1757673062283,-158.98602565,0.00015068,2]
[385148342,1757673062292,-480.0,0.00015068,2]
[385148343,1757673062301,-480.0,0.00015068,2]
[385148344,1757673062310,-496.66,0.00015068,2]
[385148345,1757673062319,-480.0,0.00015068,2]
[385148346,1757673062329,-480.0,0.00015068,2]
[385148347,1757673062341,-530.94943243,0.00015068,2]
[385148348,1757673062350,-480.0,0.00015068,2]
[385148349,1757673062359,-480.0,0.00015068,2]
[385148350,1757673062368,-480.0,0.00015068,2]
[385148351,1757673062377,-480.0,0.00015068,2]
[385148352,1757673062387,-480.0,0.00015068,2]
[385148353,1757673062396,-480.0,0.00015068,2]
[385148354,1757673062405,-480.0,0.00015068,2]
[385148355,1757673062415,-480.0,0.00015068,2]
[385148356,1757673062426,-444.04604287,0.00015068,2]
[385148357,1757673062435,-171.37992175,0.00015068,2]
[385148358,1757673062446,-480.0,0.00015068,2]
[385148359,1757673062456,-480.0,0.00015068,2]
[385148360,1757673062465,-407.12969967,0.00015068,2]
[385148361,1757673062475,-322.8226475,0.00015068,2]
[385148362,1757673062485,-480.0,0.00015068,2]
[385148363,1757673062494,-480.0,0.00015068,2]
[385148364,1757673062504,-480.0,0.00015068,2]
[385148365,1757673062513,-480.0,0.00015068,2]
[385148366,1757673062523,-480.0,0.00015068,2]
[385148367,1757673062532,-480.0,0.00015068,2]
[385148368,1757673062542,-480.0,0.00015068,2]
[385148369,1757673062552,-480.0,0.00015068,2]
[385148370,1757673062562,-480.0,0.00015068,2]
[385148371,1757673062572,-480.83,0.00015068,2]
[385148372,1757673062582,-480.0,0.00015068,2]
[385148373,1757673062592,-480.0,0.00015068,2]
[385148374,1757673062602,-32.33577511,0.00015068,2]
[385148375,1757673062887,-480.0,0.00013972,2]
[385148376,1757673062898,-2518.07422489,0.00015068,2]
[385148377,1757673062909,-480.0,0.00015068,2]
[385148378,1757673062918,-351.80357135,0.00015068,2]
[385148379,1757673062931,-274.35719456,0.00015068,2]
[385148380,1757673062941,-495.0,0.00015068,2]
[385148381,1757673062950,-386.14974245,0.00015068,2]
[385148382,1757673062978,-480.0,0.00013698,2]
[385148383,1757673062988,-93.85025755,0.00015068,2]
[385148384,1757673062998,-480.0,0.00015068,2]
[385148385,1757673063007,-480.0,0.00015068,2]
[385148386,1757673063019,-521.29,0.00015068,2]
[385148387,1757673063031,-480.0,0.00015068,2]
[385148388,1757673063041,-506.33,0.00015068,2]
[385148389,1757673063051,-3449.72,0.00015068,2]
[385148390,1757673063062,-480.0,0.00015068,2]
[385148391,1757673063072,-480.0,0.00015068,2]
[385148392,1757673063082,-606.05,0.00015068,2]
[385148393,1757673063093,-480.0,0.00015068,2]
[385148394,1757673063103,-480.0,0.00015068,2]
[385148395,1757673063113,-480.0,0.00015068,2]
[385148396,1757673063123,-480.0,0.00015068,2]
[385148397,1757673063134,-480.0,0.00015068,2]
[385148398,1757673063143,-480.0,0.00015068,2]
[385148399,1757673063154,-592.28956643,0.00015068,2]
[385148400,1757673063163,-480.0,0.00015068,2]
[385148401,1757673063173,-480.0,0.00015068,2]
[385148402,1757673063183,-480.0,0.00015068,2]
[385148403,1757673063192,-480.0,0.00015068,2]
[385148404,1757673063202,-480.0,0.00015068,2]
[385148405,1757673063212,-951.78,0.00015068,2]
[385148406,1757673063222,-1363.58,0.00015068,2]
[385148407,1757673063232,-480.0,0.00015068,2]
[385148408,1757673063242,-480.0,0.00015068,2]
[385148409,1757673063252,-552.65,0.00015068,2]
[385148410,1757673063262,-745.71,0.00015068,2]
[385148411,1757673063273,-480.0,0.00015068,2]
[385148412,1757673063283,-607.04,0.00015068,2]
[385148413,1757673063293,-480.0,0.00015068,2]
[385148414,1757673063303,-480.0,0.00015068,2]
[385148415,1757673063313,-480.0,0.00015068,2]
[385148416,1757673063322,-480.0,0.00015068,2]
[385148417,1757673063332,-1396.93,0.00015068,2]
[385148418,1757673063343,-480.0,0.00015068,2]
[385148419,1757673063352,-596.39,0.00015068,2]
[385148420,1757673063363,-480.0,0.00015068,2]
[385148421,1757673063374,-480.0,0.00015068,2]
[385148422,1757673063384,-480.0,0.00015068,2]
[385148423,1757673063396,-480.0,0.00015068,2]
[385148424,1757673063406,-480.0,0.00015068,2]
[385148425,1757673063416,-480.0,0.00015068,2]
[385148426,1757673063426,-480.0,0.00015068,2]
[385148427,1757673063437,-480.0,0.00015068,2]
[385148428,1757673063448,-480.0,0.00015068,2]
[385148429,1757673063459,-480.0,0.00015068,2]
[385148430,1757673063470,-480.0,0.00015068,2]
[385148431,1757673063480,-851.25,0.00015068,2]
[385148432,1757673063490,-480.0,0.00015068,2]
[385148433,1757673063500,-480.0,0.00015068,2]
[385148434,1757673063510,-4670.62,0.00015068,2]
[385148435,1757673063520,-480.0,0.00015068,2]
[385148436,1757673063530,-480.0,0.00015068,2]
[385148437,1757673063540,-480.0,0.00015068,2]
[385148438,1757673063549,-480.0,0.00015068,2]
[385148439,1757673063559,-557.97,0.00015068,2]
[385148440,1757673063569,-536.84,0.00015068,2]
[385148441,1757673063579,-480.0,0.00015068,2]
[385148442,1757673063591,-480.0,0.00015068,2]
[385148443,1757673063601,-531.77,0.00015068,2]
[385148444,1757673063611,-514.05,0.00015068,2]
[385148445,1757673063622,-480.0,0.00015068,2]
[385148446,1757673063633,-480.0,0.00015068,2]
[385148447,1757673063643,-613.39,0.00015068,2]
[385148448,1757673063653,-480.0,0.00015068,2]
[385148449,1757673063663,-544.67,0.00015068,2]
[385148450,1757673063673,-680.0,0.00015068,2]
[385148451,1757673063683,-480.0,0.00015068,2]
[385148452,1757673063693,-480.0,0.00015068,2]
[385148453,1757673063703,-600.17,0.00015068,2]
[385148454,1757673063713,-194.00700206,0.00015068,2]
[385148455,1757673063722,-480.0,0.00015068,2]
[385148456,1757673063731,-782.97,0.00015068,2]
[385148457,1757673063741,-480.0,0.00015068,2]
[385148458,1757673063751,-480.0,0.00015068,2]
[385148459,1757673063761,-480.0,0.00015068,2]
[385148460,1757673063771,-480.0,0.00015068,2]
[385148461,1757673063780,-533.97,0.00015068,2]
[385148462,1757673063790,-480.0,0.00015068,2]
[385148463,1757673063799,-480.0,0.00015068,2]
[385148464,1757673063810,-480.0,0.00015068,2]
[385148465,1757673063819,-480.0,0.00015068,2]
[385148466,1757673063828,-640.0,0.00015068,2]
[385148467,1757673063838,-480.0,0.00015068,2]
[385148468,1757673063849,-480.0,0.00015068,2]
[385148469,1757673063859,-480.0,0.00015068,2]
[385148470,1757673063869,-1500.0,0.00015068,2]
[385148471,1757673063879,-500.0,0.00015068,2]
[385148472,1757673063889,-1500.0,0.00015068,2]
[385148473,1757673063898,-186.9058687,0.00015068,2]
[385148474,1757673063907,-1500.0,0.00015068,2]
[385148475,1757673063918,-500.0,0.00015068,2]
[385148476,1757673063927,-501.52711983,0.00015068,2]
[385148477,1757673063938,-520.65305912,0.00015068,2]
[385148478,1757673063947,-1500.0,0.00015068,2]
[385148479,1757673063957,-299.019904,0.00015068,2]
[385148480,1757673063967,-500.0,0.00015068,2]
[385148481,1757673063976,-151.0,0.000151,2]
[385148482,1757673063986,-88667.86023999,0.000153,2]
[385148483,1757673063995,-2000.0,0.00015316,2]
[385148484,1757673064005,-1638.9273391,0.00015316,2]
[385148485,1757673064015,-2000.0,0.00015316,2]
[385148486,1757673064028,-500.0,0.00015342,2]
[385148487,1757673064038,-480.0,0.00015342,2]
[385148488,1757673064048,-480.0,0.00015342,2]
[385148489,1757673064057,-559.19,0.00015342,2]
[385148490,1757673064067,-480.0,0.00015342,2]
[385148491,1757673064077,-480.0,0.00015342,2]
[385148492,1757673064088,-480.0,0.00015342,2]
[385148493,1757673064100,-480.0,0.00015342,2]
[385148494,1757673064110,-480.0,0.00015342,2]
[385148495,1757673064121,-480.0,0.00015342,2]
[385148496,1757673064131,-480.0,0.00015342,2]
[385148497,1757673064141,-480.0,0.00015342,2]
[385148498,1757673064150,-480.0,0.00015342,2]
[385148499,1757673064160,-480.0,0.00015342,2]
[385148500,1757673064169,-480.0,0.00015342,2]
[385148501,1757673064179,-480.0,0.00015342,2]
[385148502,1757673064189,-496.66,0.00015342,2]
[385148503,1757673064198,-619.50775421,0.00015342,2]
[385148504,1757673064208,-480.0,0.00015342,2]
[385148505,1757673064218,-480.0,0.00015342,2]
[385148506,1757673064227,-480.0,0.00015342,2]
[385148507,1757673064237,-480.0,0.00015342,2]
[385148508,1757673064247,-480.0,0.00015342,2]
[385148509,1757673064256,-480.0,0.00015342,2]
[385148510,1757673064266,-480.0,0.00015342,2]
[385148511,1757673064275,-480.0,0.00015342,2]
[385148512,1757673064285,-480.0,0.00015342,2]
[385148513,1757673064294,-480.0,0.00015342,2]
[385148514,1757673064304,-480.0,0.00015342,2]
[385148515,1757673064314,-480.0,0.00015342,2]
[385148516,1757673064324,-480.0,0.00015342,2]
[385148517,1757673064334,-480.0,0.00015342,2]
[385148518,1757673064345,-322.99557535,0.00015342,2]
[385148519,1757673064355,-480.0,0.00015342,2]
[385148520,1757673064364,-480.0,0.00015342,2]
[385148521,1757673064374,-480.83,0.00015342,2]
[385148522,1757673064384,-480.0,0.00015342,2]
[385148523,1757673064394,-480.0,0.00015342,2]
[385148524,1757673064403,-2550.41,0.00015342,2]
[385148525,1757673064506,-480.0,0.00015342,2]
[385148526,1757673064516,-495.0,0.00015342,2]
[385148527,1757673064527,-480.0,0.00015342,2]
[385148528,1757673064536,-480.0,0.00015342,2]
[385148529,1757673064546,-480.0,0.00015342,2]
[385148530,1757673064557,-521.29,0.00015342,2]
[385148531,1757673064566,-480.0,0.00015342,2]
[385148532,1757673064576,-3449.72,0.00015342,2]
[385148533,1757673064586,-506.33,0.00015342,2]
[385148534,1757673064599,-480.0,0.00015342,2]
[385148535,1757673064608,-480.0,0.00015342,2]
[385148536,1757673064618,-606.05,0.00015342,2]
[385148537,1757673064634,-480.0,0.00015342,2]
[385148538,1757673064644,-480.0,0.00015342,2]
[385148539,1757673064654,-480.0,0.00015342,2]
[385148540,1757673064669,-480.0,0.00015342,2]
[385148541,1757673064687,-480.0,0.00015342,2]
[385148543,1757673064697,-480.0,0.00015342,2]
[385148544,1757673064707,-480.0,0.00015342,2]
[385148545,1757673064719,-480.0,0.00015342,2]
[385148547,1757673064728,-951.78,0.00015342,2]
[385148548,1757673064737,-1363.58,0.00015342,2]
[385148549,1757673064747,-322.18850248,0.00015342,2]
[385148550,1757673064758,-480.0,0.00015342,2]
[385148551,1757673064769,-552.65,0.00015342,2]
[385148552,1757673064781,-745.71,0.00015342,2]
[385148553,1757673064791,-480.0,0.00015342,2]
[385148554,1757673064800,-607.04,0.00015342,2]
[385148555,1757673064810,-480.0,0.00015342,2]
[385148556,1757673064819,-480.0,0.00015342,2]
[385148557,1757673064829,-480.0,0.00015342,2]
[385148558,1757673064838,-480.0,0.00015342,2]
[385148559,1757673064849,-1396.93,0.00015342,2]
[385148560,1757673064858,-480.0,0.00015342,2]
[385148561,1757673064867,-596.39,0.00015342,2]
[385148562,1757673064876,-480.0,0.00015342,2]
[385148563,1757673064885,-480.0,0.00015342,2]
[385148564,1757673064895,-480.0,0.00015342,2]
[385148565,1757673064906,-562.04290298,0.00015342,2]
[385148566,1757673064915,-480.0,0.00015342,2]
[385148567,1757673064924,-480.0,0.00015342,2]
[385148569,1757673064935,-376.29550595,0.00015342,2]
[385148570,1757673064944,-480.0,0.00015342,2]
[385148571,1757673064954,-480.0,0.00015342,2]
[385148572,1757673064964,-480.0,0.00015342,2]
[385148573,1757673064973,-480.0,0.00015342,2]
[385148574,1757673064983,-851.25,0.00015342,2]
[385148575,1757673064992,-480.0,0.00015342,2]
[385148576,1757673065003,-480.0,0.00015342,2]
[385148577,1757673065012,-4670.62,0.00015342,2]
[385148578,1757673065026,-480.0,0.00015342,2]
[385148579,1757673065035,-480.0,0.00015342,2]
[385148580,1757673065044,-480.0,0.00015342,2]
[385148581,1757673065054,-557.97,0.00015342,2]
[385148582,1757673065065,-536.84,0.00015342,2]
[385148583,1757673065075,-480.0,0.00015342,2]
[385148584,1757673065084,-265.19250577,0.00015342,2]
[385148585,1757673065094,-531.77,0.00015342,2]
[385148586,1757673065104,-514.05,0.00015342,2]
[385148587,1757673065115,-480.0,0.00015342,2]
[385148588,1757673065124,-480.0,0.00015342,2]
[385148590,1757673065133,-613.39,0.00015342,2]
[385148591,1757673065143,-480.0,0.00015342,2]
[385148592,1757673065152,-544.67,0.00015342,2]
[385148593,1757673065162,-680.0,0.00015342,2]
[385148594,1757673065171,-480.0,0.00015342,2]
[385148595,1757673065182,-600.17,0.00015342,2]
[385148596,1757673065191,-480.0,0.00015342,2]
[385148597,1757673065202,-782.97,0.00015342,2]
[385148598,1757673065212,-480.0,0.00015342,2]
[385148599,1757673065222,-480.0,0.00015342,2]
[385148600,1757673065231,-480.0,0.00015342,2]
[385148601,1757673065240,-480.0,0.00015342,2]
[385148602,1757673065250,-533.97,0.00015342,2]
[385148603,1757673065259,-480.0,0.00015342,2]
[385148604,1757673065270,-480.0,0.00015342,2]
[385148605,1757673065281,-480.0,0.00015342,2]
[385148606,1757673065293,-640.0,0.00015342,2]
[385148607,1757673065302,-415.58159672,0.00015342,2]
[385148608,1757673065313,-480.0,0.00015342,2]
[385148609,1757673065322,-480.0,0.00015342,2]
[385148610,1757673065333,-160.0,0.00015355,2]
[385148611,1757673065344,-4707.57034873,0.00015379,2]
[385148613,1757673065353,-151.0,0.000154,2]
[385148614,1757673065362,-151.0,0.000156,2]
[385148616,1757673065372,-500.0,0.00015616,2]
[385148617,1757673065382,-480.0,0.00015616,2]
[385148618,1757673065391,-559.19,0.00015616,2]
[385148619,1757673065400,-480.0,0.00015616,2]
[385148620,1757673065409,-262.391,0.00015616,2]
[385148621,1757673065419,-480.0,0.00015616,2]
[385148622,1757673065428,-480.0,0.00015616,2]
[385148623,1757673065438,-480.0,0.00015616,2]
[385148624,1757673065447,-480.0,0.00015616,2]
[385148625,1757673065456,-480.0,0.00015616,2]
[385148626,1757673065465,-480.0,0.00015616,2]
[385148627,1757673065476,-480.0,0.00015616,2]
[385148628,1757673065486,-496.66,0.00015616,2]
[385148629,1757673065495,-480.0,0.00015616,2]
[385148630,1757673065505,-480.0,0.00015616,2]
[385148631,1757673065515,-480.0,0.00015616,2]
[385148632,1757673065524,-480.0,0.00015616,2]
[385148633,1757673065534,-480.0,0.00015616,2]
[385148634,1757673065543,-480.0,0.00015616,2]
[385148635,1757673065553,-480.0,0.00015616,2]
[385148636,1757673065562,-480.0,0.00015616,2]